fUST/lending_fUST_20240322
["ID","MTS","AMOUNT","RATE_DAILY","PERIOD"]
[320054681,1711119042454,-500.0,0.00027945,2]
[320054682,1711119042463,-1861.19,0.00027945,2]
[320054683,1711119042472,-158.36715322,0.00027945,2]
[320054684,1711119042482,-352.49416645,0.00027945,2]
[320054685,1711119042491,-500.0,0.00027945,2]
[320054686,1711119042500,-500.0,0.00027945,2]
[320054687,1711119042510,-599.18782755,0.00027945,2]
[320054688,1711119042519,-500.0,0.00027945,2]
[320054690,1711119042638,-549.92,0.00027945,2]
[320054691,1711119042656,-500.0,0.00027945,2]
[320054692,1711119042670,-500.0,0.00027945,2]
[320054693,1711119042680,-320.95695272,0.00027945,2]
[320054694,1711119042689,-500.0,0.00027945,2]
[320054695,1711119042699,-2108.04,0.00027945,2]
[320054696,1711119042709,-500.0,0.00027945,2]
[320054697,1711119042718,-8401.09,0.00027945,2]
[320054699,1711119042728,-500.0,0.00027945,2]
[320054701,1711119042737,-2025.26,0.00027945,2]
[320054703,1711119042747,-500.0,0.00027945,2]
[320054704,1711119042758,-500.0,0.00027945,2]
[320054705,1711119042768,-2315.86,0.00027945,2]
[320054706,1711119042777,-5165.53,0.00027945,2]
[320054707,1711119042787,-500.0,0.00027945,2]
[320054709,1711119042796,-547.22,0.00027945,2]
[320054710,1711119042807,-764.57,0.00027945,2]
[320054714,1711119042817,-645.06,0.00027945,2]
[320054717,1711119042827,-500.0,0.00027945,2]
[320054720,1711119042836,-500.0,0.00027945,2]
[320054722,1711119042846,-500.0,0.00027945,2]
[320054724,1711119042855,-19488.85,0.00027945,2]
[320054726,1711119042864,-500.0,0.00027945,2]
[320054728,1711119042874,-574.95937404,0.00027945,2]
[320054730,1711119042883,-500.0,0.00027945,2]
[320054732,1711119042892,-2965.52,0.00027945,2]
[320054734,1711119042902,-500.0,0.00027945,2]
[320054736,1711119042911,-443.86633735,0.00027945,2]
[320054738,1711119042920,-500.0,0.00027945,2]
[320054741,1711119042929,-500.0,0.00027945,2]
[320054743,1711119042938,-2081.01,0.00027945,2]
[320054745,1711119042947,-1000.0,0.00027945,2]
[320054747,1711119042956,-500.0,0.00027945,2]
[320054748,1711119042966,-805.61,0.00027945,2]
[320054749,1711119042975,-500.0,0.00027945,2]
[320054750,1711119042986,-500.0,0.00027945,2]
[320054751,1711119042995,-1651.79,0.00027945,2]
[320054752,1711119043005,-1362.67,0.00027945,2]
[320054753,1711119043014,-2555.84,0.00027945,2]
[320054754,1711119043026,-500.0,0.00027945,2]
[320054755,1711119043035,-500.0,0.00027945,2]
[320054756,1711119043044,-500.0,0.00027945,2]
[320054757,1711119043056,-2681.6,0.00027945,2]
[320054758,1711119043065,-4416.9,0.00027945,2]
[320054759,1711119043074,-500.0,0.00027945,2]
[320054760,1711119043082,-500.0,0.00027945,2]
[320054761,1711119043092,-2420.16,0.00027945,2]
[320054762,1711119043101,-680.3,0.00027945,2]
[320054763,1711119043111,-1050.15,0.00027945,2]
[320054765,1711119043120,-500.0,0.00027945,2]
[320054766,1711119043129,-500.0,0.00027945,2]
[320054767,1711119043138,-500.0,0.00027945,2]
[320054768,1711119043147,-500.0,0.00027945,2]
[320054770,1711119043157,-500.0,0.00027945,2]
[320054771,1711119043166,-500.0,0.00027945,2]
[320054772,1711119043175,-1090.36,0.00027945,2]
[320054773,1711119043185,-500.0,0.00027945,2]
[320054774,1711119043194,-500.0,0.00027945,2]
[320054775,1711119043204,-500.0,0.00027945,2]
[320054776,1711119043213,-4599.57,0.00027945,2]
[320054777,1711119043223,-500.0,0.00027945,2]
[320054778,1711119043232,-846.22,0.00027945,2]
[320054780,1711119043241,-500.0,0.00027945,2]
[320054781,1711119043251,-500.0,0.00027945,2]
[320054782,1711119043260,-500.0,0.00027945,2]
[320054783,1711119043270,-500.0,0.00027945,2]
[320054784,1711119043280,-500.0,0.00027945,2]
[320054786,1711119043290,-500.0,0.00027945,2]
[320054787,1711119043299,-500.0,0.00027945,2]
[320054788,1711119043313,-500.0,0.00027945,2]
[320054789,1711119043322,-27335.65,0.00027945,2]
[320054790,1711119043331,-500.0,0.00027945,2]
[320054791,1711119043340,-500.0,0.00027945,2]
[320054792,1711119043349,-500.0,0.00027945,2]
[320054793,1711119043359,-522.82320032,0.00027945,2]
[320054794,1711119043368,-1873.21,0.00027945,2]
[320054795,1711119043377,-500.0,0.00027945,2]
[320054796,1711119043387,-500.0,0.00027945,2]
[320054797,1711119043397,-500.0,0.00027945,2]
[320054798,1711119043406,-5887.96,0.00027945,2]
[320054799,1711119043418,-500.0,0.00027945,2]
[320054800,1711119043428,-500.0,0.00027945,2]
[320054801,1711119043438,-500.0,0.00027945,2]
[320054802,1711119043447,-500.0,0.00027945,2]
[320054803,1711119043456,-500.0,0.00027945,2]
[320054804,1711119043465,-500.0,0.00027945,2]
[320054805,1711119043474,-500.0,0.00027945,2]
[320054806,1711119043483,-500.0,0.00027945,2]
[320054807,1711119043492,-500.0,0.00027945,2]
[320054808,1711119043501,-25844.78,0.00027945,2]
[320054809,1711119043510,-500.0,0.00027945,2]
[320054810,1711119043519,-2201.2,0.00027945,2]
[320054811,1711119043528,-500.0,0.00027945,2]
[320054812,1711119043538,-1041.72,0.00027945,2]
[320054813,1711119043547,-500.0,0.00027945,2]
[320054814,1711119043559,-500.0,0.00027945,2]
[320054815,1711119043568,-1783.07,0.00027945,2]
[320054816,1711119043578,-500.0,0.00027945,2]
[320054817,1711119043587,-500.0,0.00027945,2]
[320054818,1711119043596,-500.0,0.00027945,2]
[320054819,1711119043606,-500.0,0.00027945,2]
[320054820,1711119043615,-500.0,0.00027945,2]
[320054821,1711119043624,-500.0,0.00027945,2]
[320054822,1711119043635,-500.0,0.00027945,2]
[320054823,1711119043644,-500.0,0.00027945,2]
[320054824,1711119043653,-166.666666,0.00028038,2]
[320054825,1711119043662,-1000.0,0.00028393,2]
[320054826,1711119043672,-169.73366787,0.00028493,2]
[320054827,1711119043681,-500.0,0.00028493,2]
[320054828,1711119043690,-500.0,0.00028493,2]
[320054829,1711119043699,-500.0,0.00028493,2]
[320054830,1711119043709,-500.0,0.00028493,2]
[320054831,1711119043718,-500.0,0.00028493,2]
[320054832,1711119043727,-500.0,0.00028493,2]
[320054833,1711119043736,-500.0,0.00028493,2]
[320054834,1711119043745,-847.92,0.00028493,2]
[320054835,1711119043756,-500.0,0.00028493,2]
[320054836,1711119043765,-500.0,0.00028493,2]
[320054837,1711119043775,-500.0,0.00028493,2]
[320054838,1711119043784,-692.61,0.00028493,2]
[320054839,1711119043794,-500.0,0.00028493,2]
[320054840,1711119043806,-500.0,0.00028493,2]
[320054841,1711119043815,-500.0,0.00028493,2]
[320054842,1711119043824,-509.05,0.00028493,2]
[320054843,1711119043833,-500.0,0.00028493,2]
[320054844,1711119043843,-500.0,0.00028493,2]
[320054845,1711119043852,-244.70375022,0.00028493,2]
[320054846,1711119043861,-295.49281063,0.00028493,2]
[320054847,1711119043870,-500.0,0.00028493,2]
[320054848,1711119043879,-500.0,0.00028493,2]
[320054849,1711119043889,-500.0,0.00028493,2]
[320054850,1711119043898,-1363.16,0.00028493,2]
[320054851,1711119043907,-500.0,0.00028493,2]
[320054852,1711119043916,-500.0,0.00028493,2]
[320054853,1711119043925,-500.0,0.00028493,2]
[320054854,1711119043934,-500.0,0.00028493,2]
[320054855,1711119043943,-500.0,0.00028493,2]
[320054856,1711119043953,-704.96,0.00028493,2]
[320054857,1711119043962,-1762.48,0.00028493,2]
[320054858,1711119043971,-842.13,0.00028493,2]
[320054859,1711119043981,-614.83,0.00028493,2]
[320054860,1711119043990,-500.0,0.00028493,2]
[320054861,1711119044000,-500.0,0.00028493,2]
[320054862,1711119044009,-500.0,0.00028493,2]
[320054863,1711119044019,-500.0,0.00028493,2]
[320054864,1711119044029,-500.0,0.00028493,2]
[320054865,1711119044038,-1056.53,0.00028493,2]
[320054866,1711119044048,-500.0,0.00028493,2]
[320054867,1711119044060,-2137.3,0.00028493,2]
[320054868,1711119044070,-500.0,0.00028493,2]
[320054869,1711119044080,-500.0,0.00028493,2]
[320054870,1711119044089,-1081.26,0.00028493,2]
[320054871,1711119044098,-500.0,0.00028493,2]
[320054872,1711119044108,-525.63,0.00028493,2]
[320054873,1711119044117,-500.0,0.00028493,2]
[320054874,1711119044128,-500.37151895,0.00028493,2]
[320054875,1711119044138,-3047.59,0.00028493,2]
[320054876,1711119044149,-1645.17,0.00028493,2]
[320054877,1711119044158,-500.0,0.00028493,2]
[320054878,1711119044169,-500.0,0.00028493,2]
[320054879,1711119044180,-500.0,0.00028493,2]
[320054880,1711119044190,-500.0,0.00028493,2]
[320054881,1711119044200,-1618.58,0.00028493,2]
[320054882,1711119044209,-969.71,0.00028493,2]
[320054883,1711119044218,-500.0,0.00028493,2]
[320054884,1711119044227,-591.12,0.00028493,2]
[320054885,1711119044236,-500.0,0.00028493,2]
[320054886,1711119044245,-500.0,0.00028493,2]
[320054887,1711119044254,-500.0,0.00028493,2]
[320054888,1711119044263,-500.0,0.00028493,2]
[320054889,1711119044273,-500.0,0.00028493,2]
[320054890,1711119044282,-500.0,0.00028493,2]
[320054891,1711119044292,-500.0,0.00028493,2]
[320054892,1711119044302,-500.0,0.00028493,2]
[320054893,1711119044311,-755.24,0.00028493,2]
[320054894,1711119044321,-500.0,0.00028493,2]
[320054895,1711119044330,-500.0,0.00028493,2]
[320054896,1711119044339,-520.1,0.00028493,2]
[320054897,1711119044349,-500.0,0.00028493,2]
[320054898,1711119044358,-500.0,0.00028493,2]
[320054899,1711119044366,-916.66,0.00028493,2]
[320054900,1711119044377,-410.01180871,0.00028493,2]
[320054901,1711119044386,-500.0,0.00028493,2]
[320054902,1711119044395,-500.0,0.00028493,2]
[320054903,1711119044404,-500.0,0.00028493,2]
[320054904,1711119044413,-500.0,0.00028493,2]
[320054905,1711119044422,-458.29010584,0.00028493,2]
[320054906,1711119044432,-500.0,0.00028493,2]
[320054907,1711119044440,-500.0,0.00028493,2]
[320054908,1711119044450,-500.0,0.00028493,2]
[320054909,1711119044459,-500.0,0.00028493,2]
[320054910,1711119044469,-500.0,0.00028493,2]
[320054911,1711119044479,-500.0,0.00028493,2]
[320054912,1711119044488,-500.0,0.00028493,2]
[320054913,1711119044500,-653.65,0.00028493,2]
[320054914,1711119044509,-500.0,0.00028493,2]
[320054915,1711119044518,-500.0,0.00028493,2]
[320054916,1711119044527,-1861.19,0.00028493,2]
[320054917,1711119044537,-500.0,0.00028493,2]
[320054918,1711119044546,-415.73089763,0.00028493,2]
[320054919,1711119044559,-500.0,0.00028493,2]
[320054920,1711119044568,-549.92,0.00028493,2]
[320054921,1711119044577,-500.0,0.00028493,2]
[320054922,1711119044586,-500.0,0.00028493,2]
[320054923,1711119044595,-500.0,0.00028493,2]
[320054924,1711119044605,-2108.04,0.00028493,2]
[320054925,1711119044617,-500.0,0.00028493,2]
[320054926,1711119044626,-8401.09,0.00028493,2]
[320054927,1711119044635,-500.0,0.00028493,2]
[320054928,1711119044646,-2025.26,0.00028493,2]
[320054929,1711119044656,-500.0,0.00028493,2]
[320054930,1711119044665,-500.0,0.00028493,2]
[320054931,1711119044674,-2315.86,0.00028493,2]
[320054932,1711119044683,-5165.53,0.00028493,2]
[320054933,1711119044694,-500.0,0.00028493,2]
[320054934,1711119044703,-547.22,0.00028493,2]
[320054935,1711119044712,-764.57,0.00028493,2]
[320054936,1711119044721,-645.06,0.00028493,2]
[320054937,1711119044730,-500.0,0.00028493,2]
[320054938,1711119044739,-500.0,0.00028493,2]
[320054939,1711119044749,-19488.85,0.00028493,2]
[320054940,1711119044856,-500.0,0.00028493,2]
[320054941,1711119044867,-500.0,0.00028493,2]
[320054942,1711119044876,-2965.52,0.00028493,2]
[320054943,1711119044885,-500.0,0.00028493,2]
[320054944,1711119044895,-348.30982632,0.00028493,2]
[320054945,1711119044905,-2081.01,0.00028493,2]
[320054946,1711119044914,-500.0,0.00028493,2]
[320054947,1711119044924,-1000.0,0.00028493,2]
[320054948,1711119044934,-500.0,0.00028493,2]
[320054949,1711119044943,-805.61,0.00028493,2]
[320054950,1711119044953,-500.0,0.00028493,2]
[320054951,1711119044963,-1651.79,0.00028493,2]
[320054952,1711119044972,-1362.67,0.00028493,2]
[320054953,1711119044981,-2555.84,0.00028493,2]
[320054954,1711119044990,-500.0,0.00028493,2]
[320054955,1711119045000,-500.0,0.00028493,2]
[320054956,1711119045009,-500.0,0.00028493,2]
[320054957,1711119045019,-2681.6,0.00028493,2]
[320054958,1711119045028,-4416.9,0.00028493,2]
[320054959,1711119045037,-500.0,0.00028493,2]
[320054960,1711119045046,-500.0,0.00028493,2]
[320054961,1711119045057,-2420.16,0.00028493,2]
[320054962,1711119045066,-680.3,0.00028493,2]
[320054963,1711119045075,-1050.15,0.00028493,2]
[320054964,1711119045085,-500.0,0.00028493,2]
[320054965,1711119045093,-500.0,0.00028493,2]
[320054966,1711119045102,-500.0,0.00028493,2]
[320054967,1711119045112,-500.0,0.00028493,2]
[320054968,1711119045121,-500.0,0.00028493,2]
[320054969,1711119045129,-500.0,0.00028493,2]
[320054970,1711119045138,-1090.36,0.00028493,2]
[320054971,1711119045147,-500.0,0.00028493,2]
[320054972,1711119045156,-500.0,0.00028493,2]
[320054973,1711119045165,-500.0,0.00028493,2]
[320054974,1711119045174,-4599.57,0.00028493,2]
[320054975,1711119045183,-846.22,0.00028493,2]
[320054976,1711119045192,-500.0,0.00028493,2]
[320054977,1711119045202,-500.0,0.00028493,2]
[320054978,1711119045210,-500.0,0.00028493,2]
[320054979,1711119045220,-500.0,0.00028493,2]
[320054980,1711119045230,-500.0,0.00028493,2]
[320054981,1711119045239,-500.0,0.00028493,2]
[320054982,1711119045248,-500.0,0.00028493,2]
[320054983,1711119045257,-500.0,0.00028493,2]
[320054984,1711119045266,-27335.65,0.00028493,2]
[320054985,1711119045275,-500.0,0.00028493,2]
[320054986,1711119045284,-500.0,0.00028493,2]
[320054987,1711119045293,-505.2617893,0.00028493,2]
[320054988,1711119045303,-1873.21,0.00028493,2]
[320054989,1711119045314,-500.0,0.00028493,2]
[320054990,1711119045324,-500.0,0.00028493,2]
[320054991,1711119045333,-500.0,0.00028493,2]
[320054992,1711119045342,-3043.26428873,0.00028493,2]
[320054993,1711119045535,-334.0510005,0.00027097,2]
[320054994,1711119045548,-2198.27386278,0.00027097,2]
[320054995,1711119045567,-66536.51020537,0.00027097,2]
[320054996,1711119045577,-500.0,0.00027397,2]
[320054997,1711119045587,-500.0,0.00027945,2]
[320054998,1711119045597,-2844.69571127,0.00028493,2]
[320054999,1711119045608,-500.0,0.00028493,2]
[320055000,1711119045618,-500.0,0.00028493,2]
[320055001,1711119045628,-500.0,0.00028493,2]
[320055002,1711119045637,-500.0,0.00028493,2]
[320055003,1711119045648,-500.0,0.00028493,2]
[320055004,1711119045657,-500.0,0.00028493,2]
[320055005,1711119045666,-500.0,0.00028493,2]
[320055007,1711119045674,-494.92872544,0.00028493,2]
[320055009,1711119045683,-500.0,0.00028493,2]
[320055010,1711119045693,-25844.78,0.00028493,2]
[320055011,1711119045703,-500.0,0.00028493,2]
[320055013,1711119045713,-2201.2,0.00028493,2]
[320055015,1711119045722,-500.0,0.00028493,2]
[320055016,1711119045731,-1041.72,0.00028493,2]
[320055017,1711119045741,-500.0,0.00028493,2]
[320055018,1711119045750,-500.0,0.00028493,2]
[320055019,1711119045760,-1783.07,0.00028493,2]
[320055020,1711119045770,-500.0,0.00028493,2]
[320055021,1711119045779,-500.0,0.00028493,2]
[320055022,1711119045789,-500.0,0.00028493,2]
[320055023,1711119045798,-500.0,0.00028493,2]
[320055024,1711119045811,-500.0,0.00028493,2]
[320055025,1711119045820,-500.0,0.00028493,2]
[320055026,1711119045829,-500.0,0.00028493,2]
[320055027,1711119045839,-166.666666,0.00028679,2]
[320055028,1711119045848,-527.76401956,0.00028767,2]
[320055029,1711119045858,-306.0,0.00028845,2]
[320055030,1711119045867,-153.0,0.00028845,2]
[320055031,1711119045878,-153.0,0.00028845,2]
[320055032,1711119045887,-153.0,0.00028845,2]
[320055033,1711119045897,-153.0,0.00028845,2]
[320055034,1711119045907,-153.0,0.00028845,2]
[320055035,1711119045916,-153.0,0.00028845,2]
[320055036,1711119045926,-153.0,0.00028845,2]
[320055038,1711119045935,-153.0,0.00028893,2]
[320055040,1711119045944,-153.0,0.00028893,2]
[320055043,1711119045954,-153.0,0.00028893,2]
[320055046,1711119045964,-153.0,0.00028893,2]
[320055049,1711119045974,-153.0,0.00028893,2]
[320055052,1711119045984,-153.0,0.00028893,2]
[320055055,1711119045993,-153.0,0.00028941,2]
[320055058,1711119046003,-689.76839438,0.00029,30]
[320055059,1711119046012,-1000.0,0.00029,2]
[320055062,1711119046021,-151.188,0.00029039,2]
[320055065,1711119046030,-500.0,0.00029041,2]
[320055067,1711119046039,-500.0,0.00029041,2]
[320055069,1711119046048,-500.0,0.00029041,2]
[320055071,1711119046060,-500.0,0.00029041,2]
[320055073,1711119046069,-500.0,0.00029041,2]
[320055075,1711119046078,-500.0,0.00029041,2]
[320055077,1711119046087,-500.0,0.00029041,2]
[320055079,1711119046097,-847.92,0.00029041,2]
[320055081,1711119046106,-500.0,0.00029041,2]
[320055083,1711119046115,-500.0,0.00029041,2]
[320055085,1711119046124,-500.0,0.00029041,2]
[320055087,1711119046134,-692.61,0.00029041,2]
[320055089,1711119046143,-500.0,0.00029041,2]
[320055091,1711119046152,-500.0,0.00029041,2]
[320055093,1711119046162,-500.0,0.00029041,2]
[320055095,1711119046171,-509.05,0.00029041,2]
[320055097,1711119046181,-500.0,0.00029041,2]
[320055099,1711119046190,-500.0,0.00029041,2]
[320055102,1711119046201,-500.0,0.00029041,2]
[320055104,1711119046210,-500.0,0.00029041,2]
[320055106,1711119046220,-500.0,0.00029041,2]
[320055108,1711119046228,-1363.16,0.00029041,2]
[320055110,1711119046237,-500.0,0.00029041,2]
[320055111,1711119046247,-500.0,0.00029041,2]
[320055114,1711119046256,-500.0,0.00029041,2]
[320055116,1711119046265,-500.0,0.00029041,2]
[320055117,1711119046274,-500.0,0.00029041,2]
[320055120,1711119046284,-704.96,0.00029041,2]
[320055121,1711119046294,-1762.48,0.00029041,2]
[320055123,1711119046307,-842.13,0.00029041,2]
[320055125,1711119046317,-614.83,0.00029041,2]
[320055127,1711119046326,-500.0,0.00029041,2]
[320055129,1711119046334,-500.0,0.00029041,2]
[320055131,1711119046343,-500.0,0.00029041,2]
[320055133,1711119046352,-500.0,0.00029041,2]
[320055135,1711119046362,-500.0,0.00029041,2]
[320055137,1711119046371,-1056.53,0.00029041,2]
[320055139,1711119046381,-2137.3,0.00029041,2]
[320055141,1711119046391,-500.0,0.00029041,2]
[320055143,1711119046401,-500.0,0.00029041,2]
[320055145,1711119046411,-1081.26,0.00029041,2]
[320055147,1711119046420,-500.0,0.00029041,2]
[320055149,1711119046430,-525.63,0.00029041,2]
[320055151,1711119046439,-500.0,0.00029041,2]
[320055153,1711119046448,-3047.59,0.00029041,2]
[320055155,1711119046458,-500.0,0.00029041,2]
[320055157,1711119046467,-1645.17,0.00029041,2]
[320055159,1711119046476,-500.0,0.00029041,2]
[320055161,1711119046485,-1618.58,0.00029041,2]
[320055163,1711119046494,-969.71,0.00029041,2]
[320055165,1711119046504,-591.12,0.00029041,2]
[320055167,1711119046514,-500.0,0.00029041,2]
[320055169,1711119046524,-500.0,0.00029041,2]
[320055171,1711119046533,-500.0,0.00029041,2]
[320055173,1711119046542,-500.0,0.00029041,2]
[320055175,1711119046551,-500.0,0.00029041,2]
[320055177,1711119046562,-500.0,0.00029041,2]
[320055179,1711119046570,-500.0,0.00029041,2]
[320055181,1711119046579,-500.0,0.00029041,2]
[320055183,1711119046588,-755.24,0.00029041,2]
[320055185,1711119046598,-500.0,0.00029041,2]
[320055187,1711119046608,-500.0,0.00029041,2]
[320055189,1711119046618,-520.1,0.00029041,2]
[320055191,1711119046627,-500.0,0.00029041,2]
[320055193,1711119046638,-500.0,0.00029041,2]
[320055195,1711119046647,-916.66,0.00029041,2]
[320055197,1711119046656,-500.0,0.00029041,2]
[320055199,1711119046665,-500.0,0.00029041,2]
[320055201,1711119046676,-500.0,0.00029041,2]
[320055203,1711119046685,-500.0,0.00029041,2]
[320055205,1711119046694,-500.0,0.00029041,2]
[320055207,1711119046704,-500.0,0.00029041,2]
[320055209,1711119046715,-500.0,0.00029041,2]
[320055211,1711119046726,-500.0,0.00029041,2]
[320055213,1711119046734,-500.0,0.00029041,2]
[320055215,1711119046743,-501.90478215,0.00029041,2]
[320055217,1711119046752,-500.0,0.00029041,2]
[320055219,1711119046761,-653.65,0.00029041,2]
[320055221,1711119046771,-500.0,0.00029041,2]
[320055223,1711119046780,-162.17961263,0.00029041,2]
[320055225,1711119046789,-1861.19,0.00029041,2]
[320055227,1711119046798,-500.0,0.00029041,2]
[320055230,1711119046811,-500.0,0.00029041,2]
[320055241,1711119046914,-549.92,0.00029041,2]
[320055243,1711119046924,-500.0,0.00029041,2]
[320055245,1711119046934,-500.0,0.00029041,2]
[320055247,1711119046944,-2108.04,0.00029041,2]
[320055249,1711119046953,-500.0,0.00029041,2]
[320055251,1711119046963,-8401.09,0.00029041,2]
[320055253,1711119046973,-261.9357256,0.00029041,2]
[320055255,1711119046982,-2025.26,0.00029041,2]
[320055257,1711119046991,-534.93257802,0.00029041,2]
[320055259,1711119047000,-2315.86,0.00029041,2]
[320055261,1711119047011,-5165.53,0.00029041,2]
[320055263,1711119047021,-500.0,0.00029041,2]
[320055265,1711119047030,-547.22,0.00029041,2]
[320055267,1711119047039,-764.57,0.00029041,2]
[320055269,1711119047048,-645.06,0.00029041,2]
[320055272,1711119047060,-500.0,0.00029041,2]
[320055273,1711119047070,-500.0,0.00029041,2]
[320055276,1711119047079,-19488.85,0.00029041,2]
[320055278,1711119047089,-500.0,0.00029041,2]
[320055280,1711119047098,-500.0,0.00029041,2]
[320055282,1711119047107,-2965.52,0.00029041,2]
[320055283,1711119047116,-500.0,0.00029041,2]
[320055286,1711119047126,-2081.01,0.00029041,2]
[320055288,1711119047135,-500.0,0.00029041,2]
[320055289,1711119047144,-1000.0,0.00029041,2]
[320055292,1711119047154,-500.0,0.00029041,2]
[320055293,1711119047164,-805.61,0.00029041,2]
[320055296,1711119047174,-500.0,0.00029041,2]
[320055298,1711119047184,-1651.79,0.00029041,2]
[320055300,1711119047193,-1362.67,0.00029041,2]
[320055301,1711119047203,-2555.84,0.00029041,2]
[320055303,1711119047214,-500.0,0.00029041,2]
[320055306,1711119047224,-500.0,0.00029041,2]
[320055307,1711119047233,-500.0,0.00029041,2]
[320055310,1711119047243,-2681.6,0.00029041,2]
[320055312,1711119047252,-4416.9,0.00029041,2]
[320055314,1711119047261,-619.42858792,0.00029041,2]
[320055315,1711119047270,-500.0,0.00029041,2]
[320055317,1711119047279,-2420.16,0.00029041,2]
[320055319,1711119047288,-680.3,0.00029041,2]
[320055322,1711119047297,-1050.15,0.00029041,2]
[320055323,1711119047309,-500.0,0.00029041,2]
[320055325,1711119047318,-500.0,0.00029041,2]
[320055327,1711119047327,-502.01098185,0.00029041,2]
[320055329,1711119047336,-500.0,0.00029041,2]
[320055331,1711119047345,-1090.36,0.00029041,2]
[320055333,1711119047354,-500.0,0.00029041,2]
[320055335,1711119047364,-500.0,0.00029041,2]
[320055338,1711119047374,-500.0,0.00029041,2]
[320055340,1711119047383,-4599.57,0.00029041,2]
[320055342,1711119047392,-846.22,0.00029041,2]
[320055344,1711119047401,-500.0,0.00029041,2]
[320055345,1711119047411,-500.0,0.00029041,2]
[320055347,1711119047420,-500.0,0.00029041,2]
[320055349,1711119047430,-500.0,0.00029041,2]
[320055352,1711119047441,-500.0,0.00029041,2]
[320055353,1711119047451,-500.0,0.00029041,2]
[320055356,1711119047461,-500.0,0.00029041,2]
[320055358,1711119047471,-27335.65,0.00029041,2]
[320055360,1711119047482,-500.0,0.00029041,2]
[320055362,1711119047491,-1873.21,0.00029041,2]
[320055364,1711119047501,-500.0,0.00029041,2]
[320055366,1711119047510,-500.0,0.00029041,2]
[320055368,1711119047520,-500.0,0.00029041,2]
[320055369,1711119047530,-5887.96,0.00029041,2]
[320055371,1711119047540,-500.0,0.00029041,2]
[320055373,1711119047550,-500.0,0.00029041,2]
[320055375,1711119047562,-500.0,0.00029041,2]
[320055377,1711119047571,-500.0,0.00029041,2]
[320055379,1711119047581,-500.0,0.00029041,2]
[320055381,1711119047591,-500.0,0.00029041,2]
[320055383,1711119047599,-402.30789362,0.00029041,2]
[320055385,1711119047613,-25844.78,0.00029041,2]
[320055387,1711119047622,-500.0,0.00029041,2]
[320055389,1711119047631,-2201.2,0.00029041,2]
[320055391,1711119047640,-500.0,0.00029041,2]
[320055393,1711119047650,-1041.72,0.00029041,2]
[320055395,1711119047660,-502.34938608,0.00029041,2]
[320055397,1711119047670,-500.0,0.00029041,2]
[320055399,1711119047679,-1783.07,0.00029041,2]
[320055401,1711119047694,-500.0,0.00029041,2]
[320055403,1711119047703,-500.0,0.00029041,2]
[320055405,1711119047714,-500.0,0.00029041,2]
[320055407,1711119047724,-500.0,0.00029041,2]
[320055409,1711119047734,-500.0,0.00029041,2]